bitfinex/quotes_BTCUSD_20250328
["timestamp","ask_amount","ask_price","bid_price","bid_amount"]
[1743131144605,1.21645805,87085.0,87084.0,8e-07]
[1743131147412,1.34393805,87085.0,87084.0,8e-07]
[1743131148117,1.36194665,87085.0,87084.0,8e-07]
[1743131154700,1.34393805,87085.0,87084.0,8e-07]
[1743131154930,1.45819569,87085.0,87084.0,8e-07]
[1743131156408,1.34393805,87085.0,87084.0,8e-07]
[1743131157516,1.36194627,87085.0,87084.0,8e-07]
[1743131160496,1.46431333,87085.0,87084.0,8e-07]
[1743131162750,0.311483,87081.0,87080.0,6e-07]
[1743131162950,0.47472151,87081.0,87080.0,6e-07]
[1743131163786,0.58897915,87081.0,87080.0,6e-07]
[1743131163994,0.72645915,87081.0,87080.0,0.00044549]
[1743131164576,0.61220151,87081.0,87080.0,0.00044549]
[1743131164967,5.10244451,87081.0,87080.0,0.00044549]
[1743131165410,5.52014451,87081.0,87080.0,0.00044549]
[1743131166410,5.52014451,87081.0,87080.0,4.9e-07]
[1743131166614,1.02990151,87081.0,87080.0,4.9e-07]
[1743131167663,0.90242151,87081.0,87080.0,4.9e-07]
[1743131167824,1.02990151,87081.0,87080.0,4.9e-07]
[1743131169396,1.04791035,87081.0,87080.0,4.9e-07]
[1743131171015,0.55571385,87074.0,87071.0,9.9e-07]
[1743131171155,0.36997649,87072.0,87071.0,9.9e-07]
[1743131171362,0.40441651,87072.0,87071.0,9.9e-07]
[1743131171621,0.53189651,87072.0,87071.0,9.9e-07]
[1743131172013,0.54990639,87072.0,87071.0,9.9e-07]
[1743131173645,0.55490639,87072.0,87071.0,9.9e-07]
[1743131174359,0.97760639,87072.0,87071.0,9.9e-07]
[1743131174654,0.95959651,87072.0,87071.0,9.9e-07]
[1743131174879,1.05499133,87072.0,87071.0,9.9e-07]
[1743131175440,0.95959651,87072.0,87071.0,9.9e-07]
[1743131176120,0.98315848,87072.0,87071.0,9.9e-07]
[1743131177680,1.0011682,87072.0,87071.0,9.9e-07]
[1743131180333,0.99716126,87072.0,87071.0,9.9e-07]
[1743131181212,0.96272124,87072.0,87071.0,9.9e-07]
[1743131181339,0.99722069,87072.0,87071.0,9.9e-07]
[1743131182710,0.86974069,87072.0,87071.0,9.9e-07]
[1743131182867,0.99722069,87072.0,87071.0,9.9e-07]
[1743131183469,1.35596615,87072.0,87071.0,9.9e-07]
[1743131183686,1.41745643,87072.0,87071.0,9.9e-07]
[1743131183886,1.28997643,87072.0,87071.0,9.9e-07]
[1743131184111,1.41745643,87072.0,87071.0,9.9e-07]
[1743131184319,1.28997643,87072.0,87071.0,9.9e-07]
[1743131184542,1.41745643,87072.0,87071.0,9.9e-07]
[1743131184745,1.35871097,87072.0,87071.0,0.00017039]
[1743131184956,1.34871097,87072.0,87071.0,0.00017039]
[1743131185302,5.84395397,87072.0,87071.0,0.00017039]
[1743131185597,5.71647397,87072.0,87071.0,0.00017039]
[1743131185795,5.84395397,87072.0,87071.0,0.00017039]
[1743131186246,1.35371097,87072.0,87071.0,0.00017039]
[1743131186415,5.84395397,87072.0,87071.0,0.00017039]
[1743131186617,5.84895397,87072.0,87071.0,0.00017039]
[1743131186940,5.84395397,87072.0,87071.0,0.00017039]
[1743131187145,5.8619647,87072.0,87071.0,0.00017039]
[1743131187384,5.8669647,87072.0,87071.0,0.00017039]
[1743131187547,5.8671647,87072.0,87071.0,0.00017039]
[1743131187754,5.88978854,87072.0,87071.0,0.00017039]
[1743131188178,5.8671647,87072.0,87071.0,0.00017039]
[1743131188904,5.8721247,87072.0,87071.0,3.9e-07]
[1743131189144,5.8721247,87072.0,87031.0,0.0005]
[1743131189145,0.541242,87049.0,87048.0,1.5e-07]
[1743131189351,0.55580285,87042.0,87041.0,1.5e-07]
[1743131189560,0.67006049,87042.0,87041.0,1.5e-07]
[1743131189991,1.10577504,87042.0,87041.0,1.5e-07]
[1743131190162,1.14025284,87042.0,87041.0,1.5e-07]
[1743131190411,1.23349504,87042.0,87041.0,1.5e-07]
[1743131190577,1.2425541,87042.0,87041.0,1.5e-07]
[1743131191570,1.22339896,87042.0,87041.0,1.5e-07]
[1743131191915,1.22739896,87042.0,87041.0,1.5e-07]
[1743131192620,1.23917856,87042.0,87041.0,1.5e-07]
[1743131193022,1.23981856,87042.0,87041.0,1.5e-07]
[1743131193609,1.23181856,87042.0,87041.0,1.5e-07]
[1743131193805,1.23681856,87042.0,87041.0,1.5e-07]
[1743131193967,1.24181856,87042.0,87041.0,1.5e-07]
[1743131194770,1.22380362,87042.0,87041.0,1.5e-07]
[1743131194915,1.33806126,87042.0,87041.0,1.5e-07]
[1743131195145,1.22380362,87042.0,87041.0,1.5e-07]
[1743131195746,1.26178583,87042.0,87041.0,1.5e-07]
[1743131197225,1.26178583,87042.0,87041.0,0.00016965]
[1743131197449,1.26212483,87042.0,87041.0,0.00016965]
[1743131197642,1.28014069,87042.0,87041.0,0.00016965]
[1743131198010,1.60294069,87042.0,87041.0,0.00016965]
[1743131202394,2.48029069,87042.0,87041.0,0.00016965]
[1743131202601,2.77774469,87042.0,87041.0,0.00016965]
[1743131204644,2.75972883,87042.0,87041.0,0.00016965]
[1743131205596,2.79813463,87042.0,87041.0,0.00016965]
[1743131205801,2.75972883,87042.0,87041.0,0.00016965]
[1743131206001,2.75472883,87042.0,87041.0,0.00016965]
[1743131206197,2.75972883,87042.0,87041.0,0.00016965]
[1743131206934,2.75472883,87042.0,87041.0,0.00016965]
[1743131207304,2.75972883,87042.0,87041.0,0.00016965]
[1743131207604,2.77774498,87042.0,87041.0,0.00016965]
[1743131209475,1.13724013,87042.0,87041.0,0.00016965]
[1743131209788,1.26536013,87042.0,87041.0,0.00016965]
[1743131210347,1.13724013,87042.0,87041.0,0.00016965]
[1743131211775,0.54129,87032.0,87031.0,6.5e-07]
[1743131211977,0.311491,87021.0,87020.0,3.5e-07]
[1743131212186,0.55587285,87017.0,87016.0,9.3e-07]
[1743131212347,0.79869049,87017.0,87016.0,9.3e-07]
[1743131213492,0.80369049,87017.0,87016.0,9.3e-07]
[1743131213694,0.91794813,87017.0,87016.0,9.3e-07]
[1743131214464,0.92954088,87017.0,87016.0,9.3e-07]
[1743131214687,0.94301181,87017.0,87016.0,9.3e-07]
[1743131214889,0.96430995,87017.0,87016.0,9.3e-07]
[1743131215090,0.85005231,87017.0,87016.0,9.3e-07]
[1743131216046,0.72149231,87017.0,87016.0,9.3e-07]
[1743131216243,0.85029231,87017.0,87016.0,9.3e-07]
[1743131218117,1.34609192,87017.0,87016.0,9.3e-07]
[1743131218697,1.36937772,87017.0,87016.0,9.3e-07]
[1743131218899,1.40567662,87017.0,87016.0,9.3e-07]
[1743131219120,1.42369806,87017.0,87016.0,9.3e-07]
[1743131219521,1.38739916,87017.0,87016.0,9.3e-07]
[1743131219730,1.38239916,87017.0,87016.0,9.3e-07]
[1743131219926,1.37739916,87017.0,87016.0,9.3e-07]
[1743131220155,1.38239916,87017.0,87016.0,9.3e-07]
[1743131220489,1.30429916,87017.0,87016.0,0.00017043]
[1743131220701,1.17049916,87017.0,87016.0,0.00017043]
[1743131220904,1.30445916,87017.0,87016.0,0.00017043]
[1743131221121,1.15748738,87017.0,87016.0,0.00017043]
[1743131221334,0.49030499,87017.0,87016.0,0.00017043]
[1743131221614,0.48049885,87017.0,87016.0,0.00017043]
[1743131222118,0.47549885,87017.0,87016.0,0.00017043]
[1743131223252,0.04630724,87017.0,87016.0,0.00017043]
[1743131223455,0.06279924,87017.0,87016.0,0.00017043]
[1743131223666,0.05779924,87017.0,87016.0,0.00017043]
[1743131223878,0.05279924,87017.0,87016.0,0.00017043]
[1743131224042,0.05779924,87017.0,87016.0,0.00017043]
[1743131224454,0.04630724,87017.0,87016.0,0.00017043]
[1743131224659,0.0282858,87017.0,87016.0,0.00017043]
[1743131224816,0.0332858,87017.0,87016.0,0.00017043]
[1743131227476,0.0447778,87017.0,87016.0,0.00017043]
[1743131227677,0.062797,87017.0,87016.0,0.00017043]
[1743131228366,0.0395112,87017.0,87016.0,0.00017043]
[1743131228568,0.0280192,87017.0,87016.0,0.00017043]
[1743131229549,0.0230192,87017.0,87016.0,0.00017043]
[1743131229730,0.0260192,87017.0,87016.0,0.00017043]
[1743131230117,0.0375112,87017.0,87016.0,0.00017043]
[1743131230334,0.0325112,87017.0,87016.0,0.00017043]
[1743131230730,0.0355112,87017.0,87016.0,0.00017043]
[1743131232656,0.0358502,87017.0,87016.0,0.00017043]
[1743131233423,0.0243582,87017.0,87016.0,0.00017043]
[1743131233669,0.0243582,87017.0,87016.0,0.12217043]
[1743131233878,0.006339,87017.0,87016.0,0.12217043]
[1743131234503,0.000339,87017.0,87016.0,0.12217043]
[1743131236912,0.000339,87017.0,87016.0,0.1244686]
[1743131238700,0.000339,87017.0,87016.0,0.23872624]
[1743131238925,0.000339,87017.0,87016.0,0.23642807]
[1743131240848,0.000339,87017.0,87016.0,0.56142807]
[1743131244713,0.000339,87017.0,87016.0,0.71857043]
[1743131252830,0.000339,87017.0,87016.0,0.71857043]
[1743131255741,0.000339,87017.0,87016.0,0.83282807]
[1743131257475,0.02278191,87035.0,87016.0,0.83282807]
[1743131257600,0.0180149,87030.0,87017.0,0.1165556]
[1743131259088,0.0200149,87030.0,87017.0,0.1165556]
[1743131261044,0.0210149,87030.0,87017.0,0.1165556]
[1743131262712,0.02133511,87029.0,87017.0,0.1165556]
[1743131263920,0.02133511,87028.0,87017.0,0.1165556]
[1743131265082,0.02133511,87027.0,87017.0,0.1165556]
[1743131266555,0.02133511,87026.0,87017.0,0.1165556]
[1743131268245,0.001339,87027.0,87017.0,0.1165556]
[1743131268648,0.000339,87027.0,87017.0,0.1165556]
[1743131269052,0.000339,87027.0,87017.0,0.11425764]
[1743131269393,0.000339,87027.0,87018.0,0.12916]
[1743131269587,0.000339,87027.0,87019.0,0.11425764]
[1743131269728,0.000339,87027.0,87020.0,0.00229797]
[1743131269933,0.001339,87027.0,87020.0,0.00229797]
[1743131270149,0.002339,87027.0,87020.0,0.00229797]
[1743131270353,0.001339,87027.0,87020.0,0.00229797]
[1743131270561,0.02134795,87026.0,87020.0,0.00229797]
[1743131270846,0.02134795,87026.0,87019.0,0.11655563]
[1743131271503,0.02134795,87026.0,87019.0,0.11425764]
[1743131272001,0.02134795,87025.0,87019.0,0.11425764]
[1743131273422,0.02134795,87024.0,87020.0,0.5964]
[1743131273639,0.02134795,87024.0,87018.0,0.5964]
[1743131273991,0.229832,87020.0,87017.0,0.5964]
[1743131274397,0.011491,87018.0,87017.0,0.5964]
[1743131274536,0.321832,87017.0,87016.0,0.00304346]
[1743131274941,0.241332,87017.0,87016.0,0.00304346]
[1743131275813,0.29683294,87017.0,87016.0,0.00304346]
[1743131277475,0.31485143,87017.0,87016.0,0.00304346]
[1743131277688,0.44305143,87017.0,87016.0,0.00304346]
[1743131278974,0.44505143,87017.0,87016.0,0.00304346]
[1743131279380,0.99154953,87017.0,87016.0,0.00304346]
[1743131279590,0.99054953,87017.0,87016.0,0.00304346]
[1743131279795,0.99454953,87017.0,87016.0,0.00304346]
[1743131280383,0.99354953,87017.0,87016.0,0.00304346]
[1743131280700,0.99654953,87017.0,87016.0,0.00304346]
[1743131283330,0.86775104,87017.0,87016.0,0.00304346]
[1743131283682,0.73955104,87017.0,87016.0,0.00304346]
[1743131284553,0.72153255,87017.0,87016.0,0.00304346]
[1743131285728,0.85033104,87017.0,87016.0,0.00304346]
[1743131285934,0.97613104,87017.0,87016.0,0.00304346]
[1743131287371,0.97313104,87017.0,87016.0,0.00304346]
[1743131287933,0.99515046,87017.0,87016.0,0.00304346]
[1743131288085,1.66833746,87017.0,87016.0,0.00304346]
[1743131288317,1.70240516,87017.0,87016.0,0.00304346]
[1743131288493,1.70740516,87017.0,87016.0,0.00304346]
[1743131288894,1.70240516,87017.0,87016.0,0.00304346]
[1743131289300,1.70740516,87017.0,87016.0,0.00304346]
[1743131289685,1.29115046,87017.0,87016.0,0.00304346]
[1743131289892,2.83441946,87017.0,87016.0,0.00304346]
[1743131290222,2.59016146,87017.0,87016.0,0.00304346]
[1743131290422,2.46731652,87017.0,87016.0,0.00304346]
[1743131290627,2.47231652,87017.0,87016.0,0.00304346]
[1743131290994,2.46731652,87017.0,87016.0,0.00304346]
[1743131291258,2.45454552,87017.0,87016.0,0.00304346]
[1743131291693,2.50984742,87017.0,87016.0,0.00304346]
[1743131293702,2.47622542,87017.0,87016.0,0.00304346]
[1743131294467,1.595007,87017.0,87016.0,0.00304346]
[1743131294675,1.51842715,87017.0,87016.0,0.00304346]
[1743131294917,1.398808,87017.0,87016.0,0.00304346]
[1743131295132,1.27271115,87017.0,87016.0,0.00304346]
[1743131295758,1.287252,87017.0,87016.0,0.00304346]
[1743131295928,1.27271115,87017.0,87016.0,0.00304346]
[1743131296130,1.13859115,87017.0,87016.0,0.00304346]
[1743131296333,0.49449351,87017.0,87016.0,0.00304346]
[1743131297912,0.623292,87017.0,87016.0,0.00304346]
[1743131298112,2.73076267,87017.0,87016.0,0.00304346]
[1743131298227,2.694494,87017.0,87016.0,0.00304346]
[1743131298942,2.71251467,87017.0,87016.0,0.00304346]
[1743131302392,2.84639467,87017.0,87016.0,0.00304346]
[1743131303082,1.92523767,87017.0,87016.0,0.00304346]
[1743131303307,1.75550967,87017.0,87016.0,0.00304346]
[1743131303678,1.75546967,87017.0,87016.0,0.00304346]
[1743131304658,1.737449,87017.0,87016.0,0.00304346]
[1743131307855,1.75546999,87017.0,87016.0,0.00304346]
[1743131310994,1.75046999,87017.0,87016.0,0.00304346]
[1743131311208,1.74546999,87017.0,87016.0,0.00304346]
[1743131311327,1.75546999,87017.0,87016.0,0.00304346]
[1743131312125,0.02603285,87012.0,87011.0,0.002]
[1743131312305,2.36977649,87012.0,87011.0,0.002]
[1743131312505,2.40653549,87012.0,87011.0,0.002]
[1743131312654,2.35053749,87012.0,87011.0,0.002]
[1743131313088,0.67014349,87012.0,87011.0,0.002]
[1743131313287,2.64088326,87012.0,87011.0,0.002]
[1743131313707,2.64588326,87012.0,87011.0,0.002]
[1743131313915,2.70118516,87012.0,87011.0,0.002]
[1743131314321,2.70618516,87012.0,87011.0,0.002]
[1743131314530,0.01454085,87011.0,87007.0,6e-07]
[1743131314744,0.63839685,87008.0,87007.0,6e-07]
[1743131314963,0.75265449,87008.0,87007.0,6e-07]
[1743131315163,0.79581357,87008.0,87007.0,6e-07]
[1743131316393,0.91007121,87008.0,87007.0,6e-07]
[1743131316660,0.98431547,87008.0,87007.0,6e-07]
[1743131317142,1.40201508,87008.0,87007.0,0.00017]
[1743131317359,0.63591985,87000.0,86999.0,4e-07]
[1743131317562,1.20740191,87000.0,86999.0,4e-07]
[1743131317851,1.20240191,87000.0,86999.0,4e-07]
[1743131318348,1.25770381,87000.0,86999.0,4e-07]
[1743131319291,1.26270381,87000.0,86999.0,4e-07]
[1743131319725,1.361659,87000.0,86999.0,4e-07]
[1743131320135,1.366659,87000.0,86999.0,4e-07]
[1743131321020,1.286659,87000.0,86999.0,4e-07]
[1743131321216,0.986659,87000.0,86999.0,4e-07]
[1743131321434,1.286659,87000.0,86999.0,4e-07]
[1743131321807,1.153179,87000.0,86999.0,4e-07]
[1743131322013,1.286699,87000.0,86999.0,4e-07]
[1743131325131,0.72438051,87000.0,86999.0,4e-07]
[1743131325907,0.74722811,87000.0,86999.0,4e-07]
[1743131326057,0.74222811,87000.0,86999.0,4e-07]
[1743131326271,0.50084911,87000.0,86999.0,4e-07]
[1743131326622,0.51634311,87000.0,86999.0,4e-07]
[1743131327035,0.51134311,87000.0,86999.0,4e-07]
[1743131327403,0.51534311,87000.0,86999.0,4e-07]
[1743131328747,0.6441416,87000.0,86999.0,4e-07]
[1743131329387,0.66216542,87000.0,86999.0,4e-07]
[1743131329686,0.66216542,87000.0,86999.0,0.0001698]
[1743131329896,0.53336693,87000.0,86999.0,0.0001698]
[1743131330135,0.53370573,87000.0,86999.0,0.0001698]
[1743131330903,0.52221173,87000.0,86999.0,0.0001698]
[1743131331110,0.49936413,87000.0,86999.0,0.1293698]
[1743131331304,0.08166452,87000.0,86999.0,0.1293698]
[1743131332712,0.04763258,87000.0,86999.0,0.1293698]
[1743131332892,0.04363258,87000.0,86999.0,0.1293698]
[1743131333770,0.04663258,87000.0,86999.0,0.1293698]
[1743131334543,0.02860876,87000.0,86999.0,0.1293698]
[1743131337273,0.02860876,87000.0,86999.0,0.24362744]
[1743131337433,0.0073388,87000.0,86999.0,0.25729968]
[1743131337805,0.0033388,87000.0,86999.0,0.25729968]
[1743131338001,0.0003388,87000.0,86999.0,0.25729968]
[1743131339147,0.0003388,87000.0,86999.0,0.25829968]
[1743131339547,0.0003388,87000.0,86999.0,0.24462744]
[1743131340869,0.0003388,87000.0,86999.0,0.1303698]
[1743131341861,0.0003388,87000.0,86999.0,0.0479698]
[1743131342057,0.0003388,87000.0,86999.0,0.0011698]
[1743131342401,0.01835868,87000.0,86999.0,0.0011698]
[1743131342611,0.02985268,87000.0,86999.0,0.0011698]
[1743131343368,0.05114517,87000.0,86999.0,0.0001698]
[1743131343810,0.05214517,87000.0,86999.0,0.0001698]
[1743131344230,0.05314517,87000.0,86999.0,0.0001698]
[1743131344572,0.03512529,87000.0,86999.0,0.0001698]
[1743131345332,0.06819002,87000.0,86999.0,0.0001698]
[1743131345511,0.06719002,87000.0,86999.0,0.0001698]
[1743131345715,0.07119002,87000.0,86999.0,0.0001698]
[1743131346063,0.06919002,87000.0,86999.0,0.0001698]
[1743131346535,0.08573087,87000.0,86999.0,0.0001698]
[1743131346766,0.19998851,87000.0,86999.0,0.0001698]
[1743131347597,0.21801176,87000.0,86999.0,0.0001698]
[1743131348052,0.21601176,87000.0,86999.0,0.0001698]
[1743131348257,0.07571927,87000.0,86999.0,0.0001698]
[1743131348473,0.07671927,87000.0,86999.0,0.0001698]
[1743131348695,0.07971927,87000.0,86999.0,0.0001698]
[1743131349266,0.07671927,87000.0,86999.0,0.0001698]
[1743131349464,0.30960427,87000.0,86999.0,0.0001698]
[1743131349671,0.07971927,87000.0,86999.0,0.0001698]
[1743131349876,0.04565454,87000.0,86999.0,0.0001698]
[1743131351315,0.04565454,87000.0,86999.0,0.0453698]
[1743131351919,0.04565454,87000.0,86999.0,0.15962744]
[1743131352253,0.04265454,87000.0,86999.0,0.23492744]
[1743131352469,0.02463129,87000.0,86999.0,0.23492744]
[1743131352659,0.02763129,87000.0,86999.0,0.23492744]
[1743131353076,0.0033388,87000.0,86999.0,0.23492744]
[1743131353507,0.0043388,87000.0,86999.0,0.23492744]
[1743131353651,0.0013388,87000.0,86999.0,0.23492744]
[1743131354070,0.0023388,87000.0,86999.0,0.23492744]
[1743131354631,0.0013388,87000.0,86999.0,0.23492744]
[1743131355020,0.0003388,87000.0,86999.0,0.23492744]
[1743131355634,0.0003388,87000.0,86999.0,0.0001698]
[1743131355977,0.02166549,87000.0,86999.0,0.00246834]
[1743131356172,0.02166549,87000.0,86999.0,0.0001698]
[1743131360509,0.02166549,87000.0,86999.0,0.00246841]
[1743131362595,0.02166549,87000.0,86999.0,0.0001698]
[1743131362794,0.02166549,87000.0,86999.0,0.00246835]
[1743131362965,0.02166549,87000.0,86999.0,0.00246832]
[1743131363374,0.02166549,87000.0,86999.0,0.0001698]
[1743131363584,0.02166549,87000.0,86999.0,0.00246833]
[1743131363790,0.02166549,87000.0,86999.0,0.0001698]
[1743131364728,0.02166549,87000.0,86999.0,0.00246832]
[1743131364901,0.02166549,87000.0,86999.0,0.0001698]
[1743131365097,0.02166549,87000.0,86999.0,0.00246832]
[1743131365306,0.02166549,87000.0,86999.0,0.0001698]
[1743131365507,0.02166549,87000.0,86999.0,0.00246832]
[1743131366524,0.02166549,87000.0,86999.0,0.0001698]
[1743131367754,0.02166549,87000.0,86999.0,0.00246835]
[1743131368068,0.02166549,87000.0,86999.0,0.0001698]
[1743131369644,0.02166549,87000.0,86999.0,0.19672744]
[1743131370664,0.0003388,87000.0,86999.0,0.19672744]
[1743131371658,0.0003388,87000.0,86999.0,0.11442744]
[1743131373036,0.0003388,87000.0,86999.0,0.0001698]
[1743131373165,0.0216777,87000.0,86999.0,0.0001698]
[1743131374041,0.0003388,87000.0,86999.0,0.0001698]
[1743131375430,0.28571318,87000.0,86999.0,0.0001698]
[1743131375637,0.29720718,87000.0,86999.0,0.0001698]
[1743131376988,0.29920718,87000.0,86999.0,0.0001698]
[1743131377493,0.31922951,87000.0,86999.0,0.0001698]
[1743131382417,0.64522715,87000.0,86999.0,0.0001698]
[1743131382587,0.39972951,87000.0,86999.0,0.0001698]
[1743131383351,0.824528,87000.0,86999.0,0.0001698]
[1743131383553,0.871728,87000.0,86999.0,0.0001698]
[1743131383728,0.85670567,87000.0,86999.0,0.0001698]
[1743131383903,0.96796331,87000.0,86999.0,0.0001698]
[1743131384104,0.85770567,87000.0,86999.0,0.0001698]
[1743131384512,0.85370567,87000.0,86999.0,0.0001698]
[1743131384837,0.99182567,87000.0,86999.0,0.0001698]
[1743131385649,0.98482567,87000.0,86999.0,0.0001698]
[1743131386120,0.98982567,87000.0,86999.0,0.0001698]
[1743131387128,1.01285039,87000.0,86999.0,0.0001698]
[1743131389280,0.88173039,87000.0,86999.0,0.0001698]
[1743131389487,1.01269039,87000.0,86999.0,0.0001698]
[1743131389691,0.99814954,87000.0,86999.0,0.0001698]
[1743131389894,0.8838919,87000.0,86999.0,0.0001698]
[1743131390098,0.5115529,87000.0,86999.0,0.0001698]
[1743131390250,0.3953469,87000.0,86999.0,0.0001698]
[1743131393920,0.50960454,87000.0,86999.0,0.0001698]
[1743131394630,0.49157982,87000.0,86999.0,0.0001698]
[1743131396993,0.58532067,87000.0,86999.0,0.0001698]
[1743131397948,0.60334487,87000.0,86999.0,0.0001698]
[1743131402429,0.68283702,87000.0,86999.0,0.0001698]
[1743131402631,0.60334487,87000.0,86999.0,0.0001698]
[1743131403727,3.04277987,87000.0,86999.0,0.0001698]
[1743131404343,2.70215587,87000.0,86999.0,0.0001698]
[1743131404544,2.48620367,87000.0,86999.0,0.0001698]
[1743131405512,2.40892367,87000.0,86999.0,0.0001698]
[1743131405950,1.61968028,87000.0,86999.0,0.0001698]
[1743131406651,1.04882028,87000.0,86999.0,0.0001698]
[1743131407315,2.05302728,87000.0,86999.0,0.0001698]
[1743131407554,1.30568504,87000.0,86999.0,0.0001698]
[1743131408331,1.02104504,87000.0,86999.0,0.0001698]
[1743131408686,0.50155255,87000.0,86999.0,0.0001698]
[1743131408865,0.51304655,87000.0,86999.0,0.0001698]
[1743131411678,0.09534694,87000.0,86999.0,0.0001698]
[1743131412455,0.03985756,87000.0,86999.0,0.0001698]
[1743131414448,0.0218328,87000.0,86999.0,0.0001698]
[1743131415499,0.0103388,87000.0,86999.0,0.0001698]
[1743131416623,0.0053388,87000.0,86999.0,0.0001698]
[1743131417014,0.0103388,87000.0,86999.0,0.0001698]
[1743131417226,0.0053388,87000.0,86999.0,0.0001698]
[1743131417423,0.0003388,87000.0,86999.0,0.0001698]
[1743131417625,0.0053388,87000.0,86999.0,0.0001698]
[1743131417763,0.0043388,87000.0,86999.0,0.0001698]
[1743131417975,0.0158328,87000.0,86999.0,0.0001698]
[1743131418351,0.07437715,87000.0,86999.0,0.0001698]
[1743131418634,0.06288315,87000.0,86999.0,0.0001698]
[1743131425018,0.29276815,87000.0,86999.0,0.0001698]
[1743131425314,0.30426215,87000.0,86999.0,0.0001698]
[1743131429097,0.32228474,87000.0,86999.0,0.0001698]
[1743131431062,0.40048474,87000.0,86999.0,0.0001698]
[1743131431293,0.51474238,87000.0,86999.0,0.0001698]
[1743131431509,1.82356323,87000.0,86999.0,0.0001698]
[1743131432770,2.12356323,87000.0,86999.0,0.0001698]
[1743131433905,0.91172574,87000.0,86999.0,0.0001698]
[1743131434126,0.60426215,87000.0,86999.0,0.0001698]
[1743131435167,0.84830915,87000.0,86999.0,0.0001698]
[1743131435361,0.60426215,87000.0,86999.0,0.0001698]
[1743131435708,0.84200615,87000.0,86999.0,0.0001698]
[1743131435922,0.83180615,87000.0,86999.0,0.0001698]
[1743131437494,0.84983012,87000.0,86999.0,0.0001698]
[1743131438558,1.05932861,87000.0,86999.0,0.0001698]
[1743131439171,1.0681506,87000.0,86999.0,0.0001698]
[1743131439374,1.0641506,87000.0,86999.0,0.0001698]
[1743131439652,1.0681506,87000.0,86999.0,0.0001698]
[1743131439873,0.8406066,87000.0,86999.0,0.0001698]
[1743131440046,1.5382026,87000.0,86999.0,0.0001698]
[1743131440274,1.5352026,87000.0,86999.0,0.0001698]
[1743131440441,1.5382026,87000.0,86999.0,0.0001698]
[1743131440765,1.5352026,87000.0,86999.0,0.0001698]
[1743131441108,1.5362026,87000.0,86999.0,0.0001698]
[1743131441513,1.5412026,87000.0,86999.0,0.0001698]
[1743131441720,1.3370596,87000.0,86999.0,0.0001698]
[1743131443533,1.31903563,87000.0,86999.0,0.0001698]
[1743131443750,1.28485449,87000.0,86999.0,0.0001698]
[1743131445405,1.39911213,87000.0,86999.0,0.0001698]
[1743131445851,1.31938356,87000.0,86999.0,0.0001698]
[1743131446008,1.35351049,87000.0,86999.0,0.0001698]
[1743131446675,1.37153529,87000.0,86999.0,0.0001698]
[1743131446882,1.8317349,87000.0,86999.0,0.0001698]
[1743131447083,1.8367349,87000.0,86999.0,0.0001698]
[1743131447748,0.55592685,86997.0,86996.0,0.0001694]
[1743131448067,5.16042749,86997.0,86996.0,0.0001694]
[1743131448975,4.59282849,86997.0,86996.0,0.0001694]
[1743131449278,4.59782849,86997.0,86996.0,0.0001694]
[1743131449422,4.65331863,86997.0,86996.0,0.0001694]
[1743131450246,4.75559006,86997.0,86996.0,0.0001694]
[1743131450660,3.71612106,86997.0,86996.0,0.0001694]
[1743131450985,2.44215606,86997.0,86996.0,0.0001694]
[1743131451749,2.6392137,86997.0,86996.0,0.0001694]
[1743131451952,3.05691331,86997.0,86996.0,0.0001694]
[1743131452171,2.94265567,86997.0,86996.0,0.0001694]
[1743131453166,2.84038424,86997.0,86996.0,0.0001694]
[1743131454154,1.36557424,86997.0,86996.0,0.0001694]
[1743131454358,5.85581724,86997.0,86996.0,0.0001694]
[1743131454556,5.79757524,86997.0,86996.0,0.0001694]
[1743131455311,5.91183288,86997.0,86996.0,0.0001694]
[1743131455520,5.59793988,86997.0,86996.0,0.0001694]
[1743131456352,5.63244352,86997.0,86996.0,0.0001694]
[1743131457643,5.65046886,86997.0,86996.0,0.0001694]
[1743131457827,5.75274029,86997.0,86996.0,0.0001694]
[1743131458648,6.12487529,86997.0,86996.0,0.0001694]
[1743131459043,6.01061765,86997.0,86996.0,0.0001694]
[1743131459247,5.18451565,86997.0,86996.0,0.0001694]
[1743131459816,5.24849718,86997.0,86996.0,0.0001694]
[1743131460963,2.73096618,86997.0,86996.0,0.0001694]
[1743131461169,2.62869475,86997.0,86996.0,0.0001694]
[1743131461569,2.41649475,86997.0,86996.0,0.0001694]
[1743131461782,2.17519611,86997.0,86996.0,0.0001694]
[1743131461986,2.03149526,86997.0,86996.0,0.0001694]
[1743131462187,1.55802626,86997.0,86996.0,0.0001694]
[1743131462598,1.50858558,86997.0,86996.0,0.0001694]
[1743131463516,1.49056024,86997.0,86996.0,0.0001694]
[1743131465524,1.41157724,86997.0,86996.0,0.0001694]
[1743131466749,1.42960171,86997.0,86996.0,0.0001694]
[1743131468093,1.17139871,86997.0,86996.0,0.0001694]
[1743131468635,2.68809471,86997.0,86996.0,0.0001694]
[1743131472875,2.76389471,86997.0,86996.0,0.0001694]
[1743131473235,2.79844889,86997.0,86996.0,0.0001694]
[1743131474289,2.84744889,86997.0,86996.0,0.0001694]
[1743131474495,0.55596385,86984.0,86983.0,0.0001694]
[1743131474704,0.67022149,86984.0,86983.0,0.0001694]
[1743131474921,2.82497649,86984.0,86983.0,0.0001694]
[1743131475149,2.64094649,86984.0,86983.0,0.0001694]
[1743131475683,2.64639098,86984.0,86983.0,0.0001694]
[1743131476245,1.73856612,86984.0,86983.0,0.0001694]
[1743131477415,1.85782376,86984.0,86983.0,0.0001694]
[1743131477612,1.85782376,86984.0,86983.0,4e-07]
[1743131477613,2.01847644,86984.0,86983.0,4e-07]
[1743131477820,1.02909315,86984.0,86983.0,4e-07]
[1743131478023,1.15793315,86984.0,86983.0,4e-07]
[1743131478247,1.17125007,86984.0,86983.0,4e-07]
[1743131478458,0.011496,86982.0,86981.0,44.75313743]
[1743131478623,5.4248371,86982.0,86981.0,44.75313743]
[1743131478824,5.4248371,86982.0,86981.0,43.68975143]
[1743131479023,5.4248371,86982.0,86981.0,43.10469543]
[1743131479678,5.48032724,86982.0,86981.0,43.10469543]
[1743131479938,4.92343124,86982.0,86981.0,43.10469543]
[1743131480112,4.46168224,86982.0,86981.0,43.10469543]
[1743131480339,4.46168224,86982.0,86981.0,43.05945606]
[1743131480340,4.63289988,86982.0,86981.0,43.05945606]
[1743131480638,4.51864224,86982.0,86981.0,43.05945606]
[1743131480969,4.51364224,86982.0,86981.0,43.05945606]
[1743131481413,4.50864224,86982.0,86981.0,43.05945606]
[1743131481614,4.51364224,86982.0,86981.0,43.05945606]
[1743131481817,4.51864224,86982.0,86981.0,43.05945606]
[1743131482378,4.51880224,86982.0,86981.0,43.05945606]
[1743131483812,4.53678033,86982.0,86981.0,43.05945606]
[1743131484012,4.54178033,86982.0,86981.0,43.05945606]
[1743131485407,4.54178033,86982.0,86981.0,43.05962546]
[1743131485549,4.28894033,86982.0,86981.0,43.05962546]
[1743131485907,3.03577248,86982.0,86981.0,43.05962546]
[1743131486066,1.19827848,86982.0,86981.0,43.05962546]
[1743131486283,1.21281933,86982.0,86981.0,43.05962546]
[1743131486486,1.05260933,86982.0,86981.0,43.05962546]